fUSD/lending_fUSD_20260605
["ID","MTS","AMOUNT","RATE_DAILY","PERIOD"]
[424182364,1780632663000,-688.0,0.00033416,30]
[424182349,1780632663000,-1220.45730769,0.00033375,2]
[424182365,1780632663000,-186.17752465,0.00033441,2]
[424182369,1780632663000,-1139.0,0.00033503,30]
[424182347,1780632663000,-1107.3794569,0.00033375,2]
[424182346,1780632663000,-1153.47761833,0.00033375,2]
[424182351,1780632663000,-1276.56092797,0.0003338,2]
[424182373,1780632663000,-1690.05,0.00033506,7]
[424182328,1780632663000,-290.3986294,0.00032978,2]
[424182329,1780632663000,-1085.42,0.00033,30]
[424182331,1780632663000,-215.6546714,0.00033073,14]
[424182330,1780632663000,-186.17752465,0.00033068,2]
[424182332,1780632663000,-554.34768452,0.00033123,120]
[424182334,1780632663000,-557.69,0.0003313,30]
[424182335,1780632663000,-160.0,0.000332,11]
[424182333,1780632663000,-482.29571649,0.00033123,120]
[424182352,1780632663000,-1311.29916958,0.0003338,2]
[424182342,1780632663000,-500.0,0.00033315,2]
[424182344,1780632663000,-1585.7140101,0.00033375,2]
[424182343,1780632663000,-2098.1,0.00033338,14]
[424182345,1780632663000,-1122.13143773,0.00033375,2]
[424182337,1780632663000,-160.0,0.000332,9]
[424182339,1780632663000,-6337.6,0.00033287,2]
[424182338,1780632663000,-500.0,0.00033284,8]
[424182340,1780632663000,-891.65,0.00033287,7]
[424182341,1780632663000,-1231.06,0.000333,30]
[424182350,1780632663000,-1411.57136064,0.0003338,2]
[424182336,1780632663000,-160.0,0.000332,9]
[424182372,1780632663000,-2555.0,0.00033503,30]
[424182356,1780632663000,-588.0,0.00033414,30]
[424182374,1780632663000,-260.4103811,0.0003352,2]
[424182400,1780632663000,-159.069907,0.00034,120]
[424182399,1780632663000,-200.74629892,0.00034,2]
[424182402,1780632663000,-150.0,0.00034001,2]
[424182401,1780632663000,-150.0,0.00034001,2]
[424182406,1780632663000,-3553.0,0.00034001,2]
[424182404,1780632663000,-150.0,0.00034001,2]
[424182405,1780632663000,-150.0,0.00034001,2]
[424182407,1780632663000,-1357.0,0.00034001,2]
[424182403,1780632663000,-150.0,0.00034001,2]
[424182408,1780632663000,-525.0,0.00034001,2]
[424182414,1780632663000,-1231.06,0.000342,30]
[424182412,1780632663000,-150.0,0.0003419,2]
[424182411,1780632663000,-186.17752458,0.00034186,2]
[424182416,1780632663000,-160.0,0.000342,11]
[424182413,1780632663000,-1690.05,0.00034191,7]
[424182415,1780632663000,-160.0,0.000342,14]
[424182417,1780632663000,-160.0,0.000342,11]
[424182419,1780632663000,-1000.0,0.00034247,120]
[424182418,1780632663000,-437.19,0.00034247,7]
[424182383,1780632663000,-500.0,0.0003377,2]
[424182409,1780632663000,-150.0,0.00034128,2]
[424182398,1780632663000,-525.67533782,0.00033986,2]
[424182410,1780632663000,-4473.9,0.00034182,7]
[424182389,1780632663000,-186.17752465,0.00033813,2]
[424182375,1780632663000,-644.79446245,0.00033523,2]
[424182397,1780632663000,-891.65,0.00033972,7]
[424182376,1780632663000,-804.17102365,0.00033523,2]
[424182379,1780632663000,-973.59,0.000336,120]
[424182378,1780632663000,-150.335419,0.00033542,2]
[424182382,1780632663000,-300.0,0.00033753,32]
[424182381,1780632663000,-315.40520269,0.00033703,2]
[424182380,1780632663000,-186.18115721,0.00033663,2]
[424182385,1780632663000,-690.05652292,0.00033781,7]
[424182392,1780632663000,-499.9409198,0.000339,120]
[424182377,1780632663000,-301.14337869,0.00033526,2]
[424182393,1780632663000,-1711.94,0.000339,30]
[424182394,1780632663000,-150.0,0.00033911,2]
[424182386,1780632663000,-370.44737486,0.00033781,7]
[424182387,1780632663000,-9352.43002791,0.00033781,7]
[424182396,1780632663000,-6337.6,0.00033972,2]
[424182420,1780632663000,-250.0,0.00034247,2]
[424182395,1780632663000,-150.0,0.00033911,2]
[424182388,1780632663000,-146962.92066096,0.00033781,7]
[424182384,1780632663000,-1000.0,0.0003377,2]
[424182391,1780632663000,-500.0,0.00033899,9]
[424182390,1780632663000,-15364.33,0.00033823,30]
[424182462,1780632664000,-1690.06,0.00034876,7]
[424182460,1780632664000,-1500.0,0.00034795,2]
[424182458,1780632664000,-419.0,0.00034713,2]
[424182456,1780632664000,-891.66,0.00034657,7]
[424182467,1780632664000,-1016.23586155,0.00034956,2]
[424182453,1780632664000,-185.0,0.00034619,2]
[424182457,1780632664000,-1227.0,0.00034713,2]
[424182449,1780632664000,-152.0,0.00034505,4]
[424182448,1780632664000,-2555.0,0.00034503,30]
[424182464,1780632664000,-7347.406,0.00034908,2]
[424182455,1780632664000,-6337.62,0.00034657,2]
[424182459,1780632664000,-3641.0,0.00034713,2]
[424182463,1780632664000,-1500.0,0.000349,7]
[424182471,1780632664000,-1711.94,0.00035,30]
[424182461,1780632664000,-789.49204634,0.00034832,2]
[424182466,1780632664000,-985.86097161,0.00034952,2]
[424182473,1780632664000,-311.92,0.00035,4]
[424182476,1780632664000,-152.0,0.00035018,7]
[424182470,1780632664000,-1799.62046,0.00035,120]
[424182474,1780632664000,-200.0,0.00035,120]
[424182478,1780632664000,-264.57,0.0003503,30]
[424182468,1780632664000,-152.0,0.00034972,7]
[424182472,1780632664000,-311.92,0.00035,2]
[424182475,1780632664000,-368.30440275,0.00035,30]
[424182479,1780632664000,-7347.406,0.00035033,2]
[424182447,1780632664000,-2760.0,0.00034503,30]
[424182465,1780632664000,-372.58578916,0.00034946,5]
[424182454,1780632664000,-1273.0,0.00034655,2]
[424182427,1780632664000,-588.0,0.00034414,30]
[424182450,1780632664000,-500.0,0.00034513,10]
[424182421,1780632664000,-250.0,0.00034247,2]
[424182422,1780632664000,-174.0,0.00034247,2]
[424182423,1780632664000,-300.0,0.00034247,2]
[424182425,1780632664000,-199.0,0.00034247,2]
[424182424,1780632664000,-300.0,0.00034247,2]
[424182428,1780632664000,-3302.0,0.00034414,30]
[424182480,1780632664000,-152.0,0.00035063,7]
[424182429,1780632664000,-1001.0,0.00034414,30]
[424182430,1780632664000,-1818.0,0.00034414,30]
[424182426,1780632664000,-980.58,0.000343,14]
[424182441,1780632664000,-400.0,0.00034453,2]
[424182432,1780632664000,-426.0,0.00034416,30]
[424182440,1780632664000,-400.0,0.00034453,2]
[424182431,1780632664000,-535.0,0.00034414,30]
[424182438,1780632664000,-500.0,0.00034453,2]
[424182435,1780632664000,-688.0,0.00034416,30]
[424182433,1780632664000,-216.0,0.00034416,30]
[424182436,1780632664000,-150.0,0.00034453,2]
[424182437,1780632664000,-150.74242677,0.00034453,2]
[424182434,1780632664000,-2091.0,0.00034416,30]
[424182442,1780632664000,-406.08085529,0.00034453,2]
[424182439,1780632664000,-502.48562135,0.00034453,2]
[424182443,1780632664000,-151.5,0.000345,120]
[424182445,1780632664000,-1139.0,0.00034503,30]
[424182446,1780632664000,-531.0,0.00034503,30]
[424182444,1780632664000,-733.0,0.00034503,30]
[424182452,1780632664000,-805.19,0.00034537,120]
[424182451,1780632664000,-176.62,0.00034521,120]
[424182469,1780632664000,-600.0,0.00035,120]
[424182477,1780632664000,-152.0,0.00035018,7]
[424182482,1780632664000,-752.33,0.000351,2]
[424182510,1780632664000,-976.7556371,0.00035107,120]
[424182517,1780632664000,-890.4991091,0.00035107,120]
[424182527,1780632664000,-152.0,0.00035119,7]
[424182520,1780632664000,-928.2410471,0.00035107,120]
[424182516,1780632664000,-500.0,0.00035107,120]
[424182521,1780632664000,-500.0,0.00035107,120]
[424182518,1780632664000,-892.8568119,0.00035107,120]
[424182519,1780632664000,-163.5704503,0.00035107,120]
[424182526,1780632664000,-791.896713,0.00035107,120]
[424182523,1780632664000,-571.1519785,0.00035107,120]
[424182525,1780632664000,-500.0,0.00035107,120]
[424182522,1780632664000,-354.258427,0.00035107,120]
[424182529,1780632664000,-152.0,0.00035119,7]
[424182537,1780632664000,-300.0,0.00035138,2]
[424182538,1780632664000,-300.0,0.00035138,2]
[424182530,1780632664000,-152.0,0.00035119,7]
[424182540,1780632664000,-300.0,0.00035138,2]
[424182531,1780632664000,-500.0,0.00035128,10]
[424182539,1780632664000,-300.0,0.00035138,2]
[424182528,1780632664000,-152.0,0.00035119,7]
[424182533,1780632664000,-300.0,0.00035138,2]
[424182536,1780632664000,-300.0,0.00035138,2]
[424182534,1780632664000,-300.0,0.00035138,2]
[424182535,1780632664000,-300.0,0.00035138,2]
[424182532,1780632664000,-1097.74908549,0.00035138,2]
[424182541,1780632664000,-301.25409699,0.00035138,2]
[424182492,1780632664000,-303.70284874,0.00035101,2]
[424182511,1780632664000,-554.4033122,0.00035107,120]
[424182509,1780632664000,-1276.0,0.00035105,3]
[424182524,1780632664000,-500.0,0.00035107,120]
[424182505,1780632664000,-300.0,0.00035101,2]
[424182508,1780632664000,-250.0,0.00035105,7]
[424182484,1780632664000,-300.0,0.00035101,2]
[424182483,1780632664000,-394.43,0.000351,2]
[424182485,1780632664000,-310.41093008,0.00035101,2]
[424182491,1780632664000,-595.52105001,0.00035101,2]
[424182488,1780632664000,-1637.97013637,0.00035101,2]
[424182486,1780632664000,-410.64394477,0.00035101,2]
[424182489,1780632664000,-300.00000001,0.00035101,2]
[424182487,1780632664000,-300.0,0.00035101,2]
[424182490,1780632664000,-300.0,0.00035101,2]
[424182494,1780632664000,-512.60852236,0.00035101,2]
[424182503,1780632664000,-485.39259751,0.00035101,2]
[424182496,1780632664000,-300.0,0.00035101,2]
[424182504,1780632664000,-310.66121846,0.00035101,2]
[424182481,1780632664000,-510.2,0.000351,2]
[424182498,1780632664000,-300.0,0.00035101,2]
[424182493,1780632664000,-300.0,0.00035101,2]
[424182512,1780632664000,-730.559974,0.00035107,120]
[424182515,1780632664000,-500.0,0.00035107,120]
[424182513,1780632664000,-152.4350226,0.00035107,120]
[424182514,1780632664000,-500.0,0.00035107,120]
[424182506,1780632664000,-300.0,0.00035101,2]
[424182507,1780632664000,-300.0,0.00035101,2]
[424182501,1780632664000,-300.0,0.00035101,2]
[424182502,1780632664000,-300.00000001,0.00035101,2]
[424182499,1780632664000,-300.0,0.00035101,2]
[424182495,1780632664000,-885.58573708,0.00035101,2]
[424182497,1780632664000,-453.07819494,0.00035101,2]
[424182500,1780632664000,-300.0,0.00035101,2]
[424182585,1780632665000,-300.0,0.00035138,2]
[424182583,1780632665000,-1637.97013637,0.00035138,2]
[424182591,1780632665000,-626.69317142,0.00035138,2]
[424182572,1780632665000,-300.0,0.00035138,2]
[424182590,1780632665000,-300.0,0.00035138,2]
[424182574,1780632665000,-866.62523856,0.00035138,2]
[424182575,1780632665000,-951.46597211,0.00035138,2]
[424182577,1780632665000,-300.0,0.00035138,2]
[424182576,1780632665000,-1801.88721781,0.00035138,2]
[424182573,1780632665000,-300.0,0.00035138,2]
[424182586,1780632665000,-595.52105001,0.00035138,2]
[424182581,1780632665000,-300.0,0.00035138,2]
[424182580,1780632665000,-310.41093008,0.00035138,2]
[424182594,1780632665000,-300.0,0.00035138,2]
[424182587,1780632665000,-300.0,0.00035138,2]
[424182582,1780632665000,-300.0,0.00035138,2]
[424182588,1780632665000,-300.0,0.00035138,2]
[424182589,1780632665000,-512.60852236,0.00035138,2]
[424182593,1780632665000,-453.07819494,0.00035138,2]
[424182603,1780632665000,-300.0,0.00035138,2]
[424182604,1780632665000,-300.0,0.00035138,2]
[424182592,1780632665000,-300.0,0.00035138,2]
[424182600,1780632665000,-310.66121846,0.00035138,2]
[424182597,1780632665000,-300.0,0.00035138,2]
[424182595,1780632665000,-300.0,0.00035138,2]
[424182596,1780632665000,-300.0,0.00035138,2]
[424182578,1780632665000,-539.6552741,0.00035138,2]
[424182584,1780632665000,-300.0,0.00035138,2]
[424182579,1780632665000,-300.0,0.00035138,2]
[424182598,1780632665000,-300.0,0.00035138,2]
[424182568,1780632665000,-344.84564358,0.00035138,2]
[424182543,1780632665000,-493.96494702,0.00035138,2]
[424182544,1780632665000,-300.0,0.00035138,2]
[424182545,1780632665000,-300.0,0.00035138,2]
[424182542,1780632665000,-300.0,0.00035138,2]
[424182546,1780632665000,-302.39823176,0.00035138,2]
[424182547,1780632665000,-606.01943079,0.00035138,2]
[424182550,1780632665000,-3206.51250246,0.00035138,2]
[424182549,1780632665000,-300.0,0.00035138,2]
[424182551,1780632665000,-300.0,0.00035138,2]
[424182548,1780632665000,-300.0,0.00035138,2]
[424182553,1780632665000,-535.40148659,0.00035138,2]
[424182552,1780632665000,-1069.74260505,0.00035138,2]
[424182554,1780632665000,-727.95528898,0.00035138,2]
[424182570,1780632665000,-300.0,0.00035138,2]
[424182556,1780632665000,-302.57479324,0.00035138,2]
[424182558,1780632665000,-300.0,0.00035138,2]
[424182557,1780632665000,-426.01801252,0.00035138,2]
[424182555,1780632665000,-300.0,0.00035138,2]
[424182563,1780632665000,-300.0,0.00035138,2]
[424182561,1780632665000,-300.0,0.00035138,2]
[424182559,1780632665000,-301.35684721,0.00035138,2]
[424182560,1780632665000,-525.36649581,0.00035138,2]
[424182562,1780632665000,-300.0,0.00035138,2]
[424182564,1780632665000,-300.0,0.00035138,2]
[424182565,1780632665000,-300.0,0.00035138,2]
[424182567,1780632665000,-1080.21357232,0.00035138,2]
[424182569,1780632665000,-528.25355298,0.00035138,2]
[424182571,1780632665000,-300.0,0.00035138,2]
[424182566,1780632665000,-300.0,0.00035138,2]
[424182599,1780632665000,-485.39259751,0.00035138,2]
[424182619,1780632665000,-300.0,0.00035138,2]
[424182601,1780632665000,-300.0,0.00035138,2]
[424182634,1780632665000,-301.35684721,0.00035138,2]
[424182637,1780632665000,-300.0,0.00035138,2]
[424182639,1780632665000,-300.0,0.00035138,2]
[424182636,1780632665000,-300.0,0.00035138,2]
[424182632,1780632665000,-300.0,0.00035138,2]
[424182644,1780632665000,-344.84564358,0.00035138,2]
[424182642,1780632665000,-1080.21357232,0.00035138,2]
[424182645,1780632665000,-528.25355298,0.00035138,2]
[424182651,1780632665000,-951.46597211,0.00035138,2]
[424182647,1780632665000,-300.0,0.00035138,2]
[424182648,1780632665000,-300.00000001,0.00035138,2]
[424182646,1780632665000,-300.0,0.00035138,2]
[424182643,1780632665000,-300.0,0.00035138,2]
[424182638,1780632665000,-300.0,0.00035138,2]
[424182652,1780632665000,-1801.88721781,0.00035138,2]
[424182650,1780632665000,-866.62523856,0.00035138,2]
[424182655,1780632665000,-300.0,0.00035138,2]
[424182657,1780632665000,-300.0,0.00035138,2]
[424182656,1780632665000,-310.41093008,0.00035138,2]
[424182654,1780632665000,-300.0,0.00035138,2]
[424182660,1780632665000,-300.0,0.00035138,2]
[424182665,1780632665000,-512.60852236,0.00035138,2]
[424182661,1780632665000,-300.0,0.00035138,2]
[424182659,1780632665000,-1637.97013637,0.00035138,2]
[424182658,1780632665000,-300.0,0.00035138,2]
[424182663,1780632665000,-300.0,0.00035138,2]
[424182662,1780632665000,-595.52105001,0.00035138,2]
[424182602,1780632665000,-300.0,0.00035138,2]
[424182653,1780632665000,-300.0,0.00035138,2]
[424182635,1780632665000,-300.0,0.00035138,2]
[424182649,1780632665000,-300.0,0.00035138,2]
[424182640,1780632665000,-300.0,0.00035138,2]
[424182615,1780632665000,-300.0,0.00035138,2]
[424182630,1780632665000,-300.0,0.00035138,2]
[424182612,1780632665000,-300.0,0.00035138,2]
[424182606,1780632665000,-1097.74908549,0.00035138,2]
[424182613,1780632665000,-300.0,0.00035138,2]
[424182616,1780632665000,-300.0,0.00035138,2]
[424182614,1780632665000,-300.0,0.00035138,2]
[424182609,1780632665000,-300.0,0.00035138,2]
[424182607,1780632665000,-300.0,0.00035138,2]
[424182617,1780632665000,-493.96494702,0.00035138,2]
[424182608,1780632665000,-300.96590551,0.00035138,2]
[424182611,1780632665000,-300.0,0.00035138,2]
[424182605,1780632665000,-300.0,0.00035138,2]
[424182618,1780632665000,-300.0,0.00035138,2]
[424182610,1780632665000,-300.0,0.00035138,2]
[424182664,1780632665000,-300.0,0.00035138,2]
[424182620,1780632665000,-302.39823176,0.00035138,2]
[424182624,1780632665000,-300.0,0.00035138,2]
[424182627,1780632665000,-1069.74260505,0.00035138,2]
[424182626,1780632665000,-300.0,0.00035138,2]
[424182622,1780632665000,-300.0,0.00035138,2]
[424182625,1780632665000,-3206.51250246,0.00035138,2]
[424182621,1780632665000,-606.01943079,0.00035138,2]
[424182633,1780632665000,-300.0,0.00035138,2]
[424182629,1780632665000,-727.95528898,0.00035138,2]
[424182628,1780632665000,-535.40148659,0.00035138,2]
[424182631,1780632665000,-302.57479324,0.00035138,2]
[424182623,1780632665000,-300.0,0.00035138,2]
[424182641,1780632665000,-300.0,0.00035138,2]
[424182715,1780632666000,-301.65038824,0.00035138,2]
[424182701,1780632666000,-300.0,0.00035138,2]
[424182718,1780632666000,-1080.21357232,0.00035138,2]
[424182716,1780632666000,-300.0,0.00035138,2]
[424182719,1780632666000,-344.84564358,0.00035138,2]
[424182717,1780632666000,-300.0,0.00035138,2]
[424182700,1780632666000,-3206.51250246,0.00035138,2]
[424182703,1780632666000,-535.40148659,0.00035138,2]
[424182705,1780632666000,-300.0,0.00035138,2]
[424182699,1780632666000,-300.0,0.00035138,2]
[424182694,1780632666000,-341.89591116,0.00035138,2]
[424182706,1780632666000,-302.57479324,0.00035138,2]
[424182707,1780632666000,-300.0,0.00035138,2]
[424182708,1780632666000,-300.0,0.00035138,2]
[424182731,1780632666000,-300.0,0.00035138,2]
[424182709,1780632666000,-301.35684721,0.00035138,2]
[424182714,1780632666000,-300.0,0.00035138,2]
[424182711,1780632666000,-300.0,0.00035138,2]
[424182713,1780632666000,-300.0,0.00035138,2]
[424182712,1780632666000,-300.0,0.00035138,2]
[424182720,1780632666000,-528.25355298,0.00035138,2]
[424182724,1780632666000,-302.14099728,0.00035138,2]
[424182721,1780632666000,-300.0,0.00035138,2]
[424182732,1780632666000,-537.46758727,0.00035138,2]
[424182723,1780632666000,-300.0,0.00035138,2]
[424182725,1780632666000,-866.62523856,0.00035138,2]
[424182722,1780632666000,-301.43115309,0.00035138,2]
[424182727,1780632666000,-1801.88721781,0.00035138,2]
[424182702,1780632666000,-1069.74260505,0.00035138,2]
[424182710,1780632666000,-300.00000001,0.00035138,2]
[424182704,1780632666000,-727.95528898,0.00035138,2]
[424182669,1780632666000,-453.07819494,0.00035138,2]
[424182693,1780632666000,-493.96494702,0.00035138,2]
[424182666,1780632666000,-300.0,0.00035138,2]
[424182726,1780632666000,-951.46597211,0.00035138,2]
[424182667,1780632666000,-626.69317142,0.00035138,2]
[424182672,1780632666000,-300.0,0.00035138,2]
[424182679,1780632666000,-560.37662927,0.00035138,2]
[424182678,1780632666000,-300.64704917,0.00035138,2]
[424182671,1780632666000,-300.0,0.00035138,2]
[424182668,1780632666000,-300.0,0.00035138,2]
[424182673,1780632666000,-301.57562639,0.00035138,2]
[424182675,1780632666000,-485.39259751,0.00035138,2]
[424182674,1780632666000,-300.0,0.00035138,2]
[424182677,1780632666000,-301.67340186,0.00035138,2]
[424182676,1780632666000,-310.66121846,0.00035138,2]
[424182691,1780632666000,-300.0,0.00035138,2]
[424182681,1780632666000,-300.0,0.00035138,2]
[424182680,1780632666000,-576.89415263,0.00035138,2]
[424182682,1780632666000,-365.32657613,0.00035138,2]
[424182692,1780632666000,-300.0,0.00035138,2]
[424182683,1780632666000,-301.26491033,0.00035138,2]
[424182685,1780632666000,-300.0,0.00035138,2]
[424182684,1780632666000,-1097.74908549,0.00035138,2]
[424182687,1780632666000,-302.44278149,0.00035138,2]
[424182689,1780632666000,-300.0,0.00035138,2]
[424182688,1780632666000,-484.11868817,0.00035138,2]
[424182686,1780632666000,-300.0,0.00035138,2]
[424182690,1780632666000,-300.0,0.00035138,2]
[424182696,1780632666000,-606.01943079,0.00035138,2]
[424182698,1780632666000,-301.39624422,0.00035138,2]
[424182697,1780632666000,-300.0,0.00035138,2]
[424182695,1780632666000,-300.0,0.00035138,2]
[424182729,1780632666000,-301.39745687,0.00035138,2]
[424182670,1780632666000,-300.0,0.00035138,2]
[424182733,1780632666000,-1637.97013637,0.00035138,2]
[424182761,1780632666000,-606.01943079,0.00035138,2]
[424182767,1780632666000,-535.40148659,0.00035138,2]
[424182766,1780632666000,-1069.74260505,0.00035138,2]
[424182764,1780632666000,-3206.51250246,0.00035138,2]
[424182768,1780632666000,-727.95528898,0.00035138,2]
[424182769,1780632666000,-527.06116832,0.00035138,2]
[424182773,1780632666000,-300.0,0.00035138,2]
[424182775,1780632666000,-300.0,0.00035138,2]
[424182779,1780632666000,-301.35975064,0.00035138,2]
[424182778,1780632666000,-1080.21357232,0.00035138,2]
[424182776,1780632666000,-301.0623215,0.00035138,2]
[424182781,1780632666000,-528.25355298,0.00035138,2]
[424182774,1780632666000,-300.0,0.00035138,2]
[424182783,1780632666000,-300.0,0.00035138,2]
[424182785,1780632666000,-951.46597211,0.00035138,2]
[424182777,1780632666000,-300.0,0.00035138,2]
[424182780,1780632666000,-344.84564358,0.00035138,2]
[424182782,1780632666000,-300.0,0.00035138,2]
[424182784,1780632666000,-866.62523856,0.00035138,2]
[424182787,1780632666000,-300.0,0.00035138,2]
[424182791,1780632666000,-300.0,0.00035138,2]
[424182793,1780632666000,-595.52105001,0.00035138,2]
[424182794,1780632666000,-300.0,0.00035138,2]
[424182792,1780632666000,-552.49852976,0.00035138,2]
[424182790,1780632666000,-1637.97013637,0.00035138,2]
[424182789,1780632666000,-300.0,0.00035138,2]
[424182786,1780632666000,-1801.88721781,0.00035138,2]
[424182795,1780632666000,-300.0,0.00035138,2]
[424182728,1780632666000,-300.0,0.00035138,2]
[424182770,1780632666000,-302.57479324,0.00035138,2]
[424182763,1780632666000,-300.0,0.00035138,2]
[424182788,1780632666000,-310.41093008,0.00035138,2]
[424182771,1780632666000,-300.0,0.00035138,2]
[424182765,1780632666000,-300.0,0.00035138,2]
[424182730,1780632666000,-310.41093008,0.00035138,2]
[424182743,1780632666000,-300.0,0.00035138,2]
[424182736,1780632666000,-300.0,0.00035138,2]
[424182744,1780632666000,-453.07819494,0.00035138,2]
[424182735,1780632666000,-300.0,0.00035138,2]
[424182740,1780632666000,-512.60852236,0.00035138,2]
[424182738,1780632666000,-300.0,0.00035138,2]
[424182742,1780632666000,-302.96174664,0.00035138,2]
[424182746,1780632666000,-300.0,0.00035138,2]
[424182739,1780632666000,-300.0,0.00035138,2]
[424182745,1780632666000,-300.0,0.00035138,2]
[424182737,1780632666000,-595.52105001,0.00035138,2]
[424182741,1780632666000,-626.69317142,0.00035138,2]
[424182747,1780632666000,-300.0,0.00035138,2]
[424182734,1780632666000,-301.75905814,0.00035138,2]
[424182749,1780632666000,-485.39259751,0.00035138,2]
[424182772,1780632666000,-301.35684721,0.00035138,2]
[424182762,1780632666000,-301.0077852,0.00035138,2]
[424182758,1780632666000,-493.96494702,0.00035138,2]
[424182757,1780632666000,-311.28403502,0.00035138,2]
[424182750,1780632666000,-310.66121846,0.00035138,2]
[424182759,1780632666000,-301.91751458,0.00035138,2]
[424182753,1780632666000,-533.09399937,0.00035138,2]
[424182752,1780632666000,-1097.74908549,0.00035138,2]
[424182760,1780632666000,-300.0,0.00035138,2]
[424182754,1780632666000,-300.0,0.00035138,2]
[424182751,1780632666000,-300.0,0.00035138,2]
[424182756,1780632666000,-300.0,0.00035138,2]
[424182748,1780632666000,-300.0,0.00035138,2]
[424182755,1780632666000,-300.0,0.00035138,2]
[424182840,1780632667000,-300.0,0.00035138,2]
[424182835,1780632667000,-300.0,0.00035138,2]
[424182832,1780632667000,-951.46597211,0.00035138,2]
[424182836,1780632667000,-310.41093008,0.00035138,2]
[424182833,1780632667000,-1801.88721781,0.00035138,2]
[424182829,1780632667000,-300.0,0.00035138,2]
[424182837,1780632667000,-300.0,0.00035138,2]
[424182838,1780632667000,-300.0,0.00035138,2]
[424182831,1780632667000,-866.62523856,0.00035138,2]
[424182827,1780632667000,-344.84564358,0.00035138,2]
[424182828,1780632667000,-528.25355298,0.00035138,2]
[424182834,1780632667000,-301.3807018,0.00035138,2]
[424182849,1780632667000,-300.0,0.00035138,2]
[424182844,1780632667000,-300.0,0.00035138,2]
[424182850,1780632667000,-300.0,0.00035138,2]
[424182841,1780632667000,-483.32678539,0.00035138,2]
[424182843,1780632667000,-300.0,0.00035138,2]
[424182842,1780632667000,-595.52105001,0.00035138,2]
[424182846,1780632667000,-626.69317142,0.00035138,2]
[424182847,1780632667000,-300.0,0.00035138,2]
[424182848,1780632667000,-453.07819494,0.00035138,2]
[424182845,1780632667000,-512.60852236,0.00035138,2]
[424182851,1780632667000,-300.0,0.00035138,2]
[424182853,1780632667000,-300.0,0.00035138,2]
[424182858,1780632667000,-300.0,0.00035138,2]
[424182855,1780632667000,-485.39259751,0.00035138,2]
[424182830,1780632667000,-302.74797434,0.00035138,2]
[424182839,1780632667000,-1637.97013637,0.00035138,2]
[424182826,1780632667000,-1080.21357232,0.00035138,2]
[424182809,1780632667000,-506.34490546,0.00035138,2]
[424182816,1780632667000,-1069.74260505,0.00035138,2]
[424182861,1780632667000,-300.0,0.00035138,2]
[424182798,1780632667000,-383.9706889,0.00035138,2]
[424182797,1780632667000,-626.69317142,0.00035138,2]
[424182796,1780632667000,-512.60852236,0.00035138,2]
[424182799,1780632667000,-453.07819494,0.00035138,2]
[424182810,1780632667000,-493.96494702,0.00035138,2]
[424182811,1780632667000,-301.83893348,0.00035138,2]
[424182800,1780632667000,-300.0,0.00035138,2]
[424182801,1780632667000,-300.0,0.00035138,2]
[424182802,1780632667000,-300.0,0.00035138,2]
[424182804,1780632667000,-310.66121846,0.00035138,2]
[424182808,1780632667000,-345.01703552,0.00035138,2]
[424182805,1780632667000,-300.0,0.00035138,2]
[424182817,1780632667000,-535.40148659,0.00035138,2]
[424182803,1780632667000,-485.39259751,0.00035138,2]
[424182807,1780632667000,-300.0,0.00035138,2]
[424182813,1780632667000,-300.0,0.00035138,2]